bitfinex/quotes_SOLUSD_20240811
["timestamp","ask_amount","ask_price","bid_price","bid_amount"]
[1723383843243,0.15250287,150.94,150.91,29.53]
[1723383844920,0.15250287,150.94,150.93,29.53]
[1723383845120,0.15250287,150.94,150.93,49.53]
[1723383847926,0.15250287,150.94,150.93,20.0]
[1723383848145,0.15250287,150.94,150.92,20.0]
[1723383848340,0.15250287,150.94,150.93,29.53]
[1723383848534,0.15250287,150.94,150.93,49.53]
[1723383849146,15.2772,151.03,150.93,49.53]
[1723383849349,15.2772,151.03,150.96,29.53]
[1723383850549,4.6351,151.02,150.94,29.53]
[1723383850860,4.6354,151.01,150.95,20.0]
[1723383851158,15.2772,151.03,150.95,20.0]
[1723383851454,4.88608,151.02,150.95,20.0]
[1723383851637,0.12549,151.01,150.92,29.53]
[1723383851836,0.12549,150.98,150.9,29.53]
[1723383852452,0.12549,150.98,150.87,6.2104]
[1723383852656,4.76189,150.98,150.88,29.53]
[1723383852859,0.12549,150.96,150.88,29.53]
[1723383854643,15.40269,150.96,150.89,20.0]
[1723383854853,45.37647,150.95,150.89,20.0]
[1723383855639,45.25098,150.95,150.89,20.0]
[1723383856671,45.12549,150.95,150.9,29.53]
[1723383856873,45.0,150.95,150.91,20.0]
[1723383857564,15.2772,150.96,150.91,20.0]
[1723383857762,4.6354,151.01,150.91,20.0]
[1723383857763,15.2772,151.0,150.92,29.53]
[1723383858164,19.913,151.0,150.92,29.53]
[1723383858369,15.2772,151.0,150.92,29.53]
[1723383858872,45.50196,150.99,150.92,29.53]
[1723383859257,45.50196,150.99,150.91,20.0]
[1723383861264,15.2772,151.0,150.92,29.53]
[1723383861574,15.2772,151.0,150.94,29.53]
[1723383862647,15.2772,151.0,150.96,29.53]
[1723383862852,15.2772,151.0,150.94,29.53]
[1723383863078,15.2772,151.0,150.95,20.0]
[1723383863369,15.2772,151.0,150.87,6.2104]
[1723383863370,4.6373,150.95,150.87,6.2104]
[1723383863580,4.6373,150.95,150.74,20.0]
[1723383863581,0.12549,150.93,150.85,29.53]
[1723383863782,20.16608,150.93,150.85,29.53]
[1723383864085,20.16608,150.93,150.85,23.64]
[1723383864086,45.25098,150.92,150.85,23.64]
[1723383864282,1.90772557,150.91,150.85,23.64]
[1723383864580,0.25098,150.9,150.83,29.8504]
[1723383865180,0.12549,150.89,150.83,29.8504]
[1723383865351,0.25098,150.89,150.83,29.8504]
[1723383865558,0.25098,150.9,150.83,29.8504]
[1723383865784,0.25098,150.89,150.83,23.64]
[1723383865980,0.12549,150.88,150.83,29.55]
[1723383866490,0.12549,150.89,150.83,29.55]
[1723383866674,0.37647,150.9,150.83,29.55]
[1723383866875,0.12549,150.89,150.83,29.55]
[1723383867078,0.12549,150.89,150.84,20.0]
[1723383870078,0.12549,150.89,150.82,20.0]
[1723383870483,1.78262198,150.89,150.82,20.0]
[1723383870801,0.37647,150.88,150.82,20.0]
[1723383870965,0.12549,150.87,150.82,20.0]
[1723383871312,1.90816882,150.87,150.82,20.0]
[1723383871479,16.33887,150.86,150.8,20.0]
[1723383871789,46.7829655,150.85,150.79,20.0]
[1723383872098,0.12549,150.84,150.78,15.8878]
[1723383872275,0.12549,150.84,150.77,29.55]
[1723383872792,2.03397395,150.84,150.77,29.55]
[1723383872979,0.12549,150.83,150.77,29.55]
[1723383873191,0.25098,150.83,150.75,35.7888]
[1723383873390,0.25098,150.82,150.75,29.55]
[1723383873691,45.25098,150.82,150.75,29.55]
[1723383874993,45.12549,150.82,150.76,20.0]
[1723383876268,6.6207,150.87,150.81,29.55]
[1723383876470,15.9624,150.9,150.84,29.55]
[1723383876668,15.9624,150.9,150.82,29.55]
[1723383876892,1.6570379,150.89,150.77,0.25098]
[1723383877075,31.2070379,150.89,150.77,29.55]
[1723383877276,31.2070379,150.89,150.78,20.0]
[1723383877576,15.9624,150.9,150.81,29.55]
[1723383878089,1.65712977,150.91,150.74,6.74088057]
[1723383878090,0.12549,150.86,150.74,6.74088057]
[1723383878268,0.12549,150.86,150.74,29.55]
[1723383878269,1.90873806,150.86,150.74,29.55]
[1723383878467,0.12549,150.84,150.74,29.55]
[1723383878872,0.25098,150.84,150.74,29.55]
[1723383879075,0.25098,150.83,150.76,29.55]
[1723383879768,0.25098,150.83,150.77,20.0]
[1723383880166,0.25098,150.83,150.76,29.55]
[1723383880391,0.12549,150.82,150.74,29.55]
[1723383880600,0.25098,150.82,150.74,29.55]
[1723383880790,0.25098,150.81,150.74,29.55]
[1723383881178,15.9624,150.82,150.74,29.55]
[1723383881384,45.25098,150.81,150.74,29.55]
[1723383881576,45.25098,150.81,150.75,20.0]
[1723383883307,0.25098,150.8,150.75,20.0]
[1723383883482,0.25098,150.79,150.73,20.0]
[1723383887127,0.12549,150.79,150.73,20.0]
[1723383887406,0.50196,150.8,150.73,20.0]
[1723383888101,1.6580725,150.87,150.76,23.67]
[1723383888407,15.9624,150.89,150.8,23.67]
[1723383888716,15.9624,150.89,150.74,22.1266]
[1723383888717,44.2716,150.89,150.78,23.67]
[1723383888881,6.6207,150.88,150.79,20.0]
[1723383889078,25.32758688,150.87,150.79,20.0]
[1723383889278,6.6207,150.88,150.79,20.0]
[1723383889494,30.2907,150.88,150.77,20.0]
[1723383890607,0.12549,150.87,150.77,20.0]
[1723383890811,0.50196,150.87,150.77,20.0]
[1723383891511,45.50196,150.87,150.77,20.0]
[1723383891890,45.50196,150.87,150.77,43.66]
[1723383893617,0.12549,150.85,150.77,43.66]
[1723383893817,0.50196,150.85,150.77,43.66]
[1723383894005,0.37647,150.85,150.77,43.66]
[1723383894316,0.12549,150.84,150.77,43.66]
[1723383894515,0.12549,150.83,150.77,43.66]
[1723383894820,0.25098,150.83,150.77,20.0]
[1723383895040,15.77318,150.82,150.77,20.0]
[1723383895193,15.77318,150.82,150.74,20.0]
[1723383895194,45.12549,150.81,150.74,20.0]
[1723383895494,0.12549,150.8,150.73,23.66]
[1723383895685,2.03449964,150.8,150.73,23.66]
[1723383895890,0.12549,150.79,150.73,23.66]
[1723383896125,0.25098,150.79,150.73,23.66]
[1723383897211,0.25098,150.79,150.74,20.0]
[1723383897824,0.12549,150.78,150.73,23.66]
[1723383898012,2.03469497,150.78,150.71,23.66]
[1723383898191,0.37647,150.78,150.71,23.66]
[1723383898393,0.12549,150.77,150.71,23.66]
[1723383898599,0.25098,150.77,150.71,23.66]
[1723383898823,0.25098,150.76,150.71,23.66]
[1723383899035,0.25098,150.75,150.69,23.66]
[1723383899325,0.25098,150.75,150.6,10.38818526]
[1723383899326,15.77318,150.74,150.67,23.66]
[1723383899620,45.25098,150.73,150.67,23.66]
[1723383900027,8.56790385,150.72,150.65,23.66]
[1723383900197,45.25098,150.71,150.65,23.66]
[1723383902231,45.25098,150.71,150.66,20.0]
[1723383903223,1.78449671,150.7,150.6,10.38818526]
[1723383903414,0.25098,150.69,150.61,23.66]
[1723383903604,0.25098,150.69,150.63,23.66]
[1723383905506,0.12549,150.68,150.63,23.66]
[1723383905706,0.25098,150.68,150.63,23.66]
[1723383905893,0.25098,150.67,150.63,23.66]
[1723383906096,0.25098,150.67,150.61,23.66]
[1723383906097,0.12549,150.67,150.61,23.66]
[1723383906441,0.37647,150.68,150.62,20.0]
[1723383906594,0.37647,150.68,150.57,0.8160335]
[1723383906595,0.12549,150.66,150.57,0.8160335]
[1723383906795,45.0,150.66,150.6,23.66]
[1723383907025,15.34979,150.67,150.64,23.66]
[1723383907526,15.2243,150.67,150.64,23.66]
[1723383909326,15.2243,150.67,150.62,23.66]
[1723383910026,15.2243,150.67,150.64,23.66]
[1723383910941,15.2243,150.67,150.62,23.66]
[1723383911134,15.2243,150.67,150.63,20.0]
[1723383911302,15.2243,150.67,150.62,23.66]
[1723383912128,45.12549,150.66,150.6,23.66]
[1723383912330,45.12549,150.66,150.61,20.0]
[1723383912828,15.2243,150.67,150.62,23.66]
[1723383914300,45.12549,150.66,150.62,23.66]
[1723383916312,15.2243,150.67,150.62,23.66]
[1723383918826,15.2243,150.71,150.64,23.66]
[1723383919799,15.2243,150.71,150.66,23.66]
[1723383920937,0.12549,150.7,150.66,23.66]
[1723383921098,45.25098,150.7,150.64,23.66]
[1723383921296,45.25098,150.7,150.65,20.0]
[1723383924418,45.25098,150.7,150.66,23.66]
[1723383925106,45.12549,150.7,150.66,23.66]
[1723383926110,15.2243,150.71,150.68,23.66]
[1723383931271,16.3111,150.75,150.7,23.66]
[1723383931555,16.3111,150.75,150.72,23.66]
[1723383934159,0.25098,150.74,150.68,23.66]
[1723383934449,46.90983588,150.74,150.66,23.66]
[1723383934657,0.25098,150.73,150.67,20.0]
[1723383934851,0.12549,150.72,150.66,23.66]
[1723383936356,0.12549,150.72,150.67,20.0]
[1723383937559,0.12549,150.72,150.68,23.66]
[1723383937731,0.25098,150.73,150.68,23.66]
[1723383939566,1.90975768,150.73,150.68,23.66]
[1723383939724,0.12549,150.72,150.68,23.66]
[1723383940264,0.25098,150.72,150.66,23.66]
[1723383940465,0.37647,150.71,150.64,23.66]
[1723383940636,0.12549,150.7,150.64,23.66]
[1723383942165,0.12549,150.7,150.65,20.0]
[1723383942486,0.37647,150.7,150.65,20.0]
[1723383942752,16.56208,150.69,150.62,23.66]
[1723383942966,45.0,150.68,150.62,23.66]
[1723383943163,45.0,150.68,150.64,23.66]
[1723383943342,16.43659,150.69,150.64,23.66]
[1723383944051,16.3111,150.69,150.66,23.66]
[1723383949901,15.182,150.73,150.68,11.85]
[1723383950070,15.182,150.73,150.69,20.0]
[1723383950390,15.182,150.73,150.72,11.85]
[1723383951073,6.4733,150.78,150.72,11.85]
[1723383951270,15.182,150.77,150.75,11.85]
[1723383952487,0.12549,150.76,150.74,11.85]
[1723383952688,45.12549,150.76,150.73,11.85]
[1723383953083,1.6583912,150.75,150.69,20.0]
[1723383953282,0.12549,150.74,150.71,11.85]
[1723383953468,45.12549,150.76,150.71,11.85]
[1723383953892,45.12549,150.76,150.65,20.0]
[1723383954075,45.12549,150.76,150.7,23.69]
[1723383955689,0.12549,150.75,150.7,23.69]
[1723383956500,15.182,150.77,150.72,23.69]
[1723383957392,15.182,150.77,150.74,23.69]
[1723383959695,15.30749,150.81,150.74,23.69]
[1723383959866,45.37647,150.8,150.74,23.69]
[1723383960178,6.91561089,150.83,150.78,23.69]
[1723383960366,6.91561089,150.83,150.74,0.12549]
[1723383960367,15.182,150.85,150.8,23.69]
[1723383962622,15.182,150.85,150.78,23.69]
[1723383962785,15.182,150.85,150.79,20.0]
[1723383964287,15.182,150.85,150.8,23.69]
[1723383964610,21.6553,150.89,150.8,23.69]
[1723383964911,21.6553,150.89,150.82,23.69]
[1723383965086,21.6553,150.89,150.84,23.69]
[1723383965497,21.6553,150.89,150.79,20.0]
[1723383965498,21.6553,150.89,150.82,23.69]
[1723383965883,21.6553,150.89,150.8,23.69]
[1723383966086,21.6553,150.89,150.81,20.0]
[1723383966289,21.6553,150.89,150.82,23.69]
[1723383966588,15.182,150.89,150.84,23.69]
[1723383967319,22.8915,150.93,150.86,23.69]
[1723383969321,45.0,150.92,150.86,23.69]
[1723383969613,16.2653,150.93,150.88,23.69]
[1723383970122,23.17231208,150.97,150.9,23.69]
[1723383970284,16.2653,150.97,150.9,23.69]
[1723383971816,4.637,150.96,150.88,23.69]
[1723383972003,39.9553,150.97,150.88,23.69]
[1723383972312,4.6369,150.96,150.88,23.69]
[1723383972517,45.37647,150.95,150.88,23.69]
[1723383972818,0.25098,150.94,150.88,23.69]
[1723383973115,0.12549,150.93,150.88,23.69]
[1723383973604,6.6262,150.91,150.81,2.70119417]
[1723383973807,0.12549,150.88,150.79,40.3364]
[1723383974117,0.12549,150.88,150.79,23.69]
[1723383974292,45.50196,150.88,150.79,23.69]
[1723383974794,16.2653,150.87,150.79,23.69]
[1723383975010,45.50196,150.86,150.79,23.69]
[1723383975690,45.0,150.86,150.79,23.69]
[1723383975888,16.2653,150.87,150.81,23.69]
[1723383976094,6.6262,150.91,150.83,23.69]
[1723383976316,22.8915,150.91,150.83,23.69]
[1723383976722,22.8915,150.91,150.85,23.69]
[1723383977103,16.2653,150.91,150.85,23.69]
[1723383977304,22.8915,150.95,150.89,23.69]
[1723383977691,22.8915,150.95,150.87,23.69]
[1723383978230,22.8915,150.95,150.88,20.0]
[1723383978399,16.2653,150.95,150.89,23.69]
[1723383978601,16.2653,150.95,150.88,20.0]
[1723383978602,16.2653,150.95,150.91,23.69]
[1723383980825,16.2653,150.95,150.89,23.69]
[1723383981330,16.2653,150.95,150.9,20.0]
[1723383986811,45.0,150.94,150.9,20.0]
[1723383987010,45.12549,150.94,150.9,20.0]
[1723383987243,45.12549,150.94,150.88,20.0]
[1723383990111,45.12549,150.94,150.89,23.69]
[1723383990310,16.2653,150.95,150.89,23.69]
[1723383990311,16.2653,150.95,150.9,20.0]
[1723383991925,16.2653,150.95,150.91,23.69]
[1723383992124,23.2188,150.99,150.91,23.69]
[1723383992324,23.2188,150.99,150.95,23.69]
[1723383992325,16.5926,150.99,150.95,23.69]
[1723383992535,16.5926,150.99,150.93,23.69]
[1723383992741,16.5926,150.99,150.94,20.0]
[1723383993622,16.5926,150.99,150.95,23.69]
[1723383994726,16.5926,150.99,150.96,20.0]
[1723383995119,22.6582,151.03,150.96,20.0]
[1723383995721,6.91102069,151.05,150.99,23.69]
[1723383995940,16.5926,151.07,151.0,20.0]
[1723383996145,16.5926,151.07,151.01,23.69]
[1723383997341,16.5926,151.07,150.99,23.69]
[1723383997551,16.5926,151.07,151.0,20.0]
[1723383997974,0.12549,151.05,150.97,23.69]
[1723383998247,16.5926,151.07,150.99,23.69]
[1723383998426,16.5926,151.07,151.01,23.69]
[1723383998630,16.5926,151.07,151.03,23.69]
[1723384000140,0.8160335,151.09,151.05,23.69]
[1723384001042,0.8160335,151.09,151.06,20.0]
[1723384001729,0.8160335,151.09,151.05,20.0]
[1723384002539,0.8160335,151.09,151.06,23.69]
[1723384002735,0.8160335,151.09,151.08,23.69]
[1723384002950,0.8160335,151.09,151.08,43.69]
[1723384003135,0.8160335,151.09,151.08,43.81549]
[1723384003337,6.90637499,151.18,151.09,0.12549]
[1723384003635,16.5926,151.2,151.12,23.69]
[1723384003636,23.49680123,151.2,151.12,23.69]
[1723384003839,23.49680123,151.2,151.13,20.0]
[1723384004457,16.5926,151.2,151.11,20.0]
[1723384004949,23.69,151.19,151.11,20.0]
[1723384005542,16.5926,151.2,151.11,20.0]
[1723384005543,16.5926,151.2,151.12,23.69]
[1723384006149,0.25098,151.19,151.13,20.0]
[1723384006541,0.12549,151.19,151.13,20.0]
[1723384006742,16.5926,151.2,151.13,20.0]
[1723384006942,0.12549,151.19,151.13,20.0]
[1723384007147,16.6648335,151.24,151.14,23.69]
[1723384007444,16.6648335,151.24,151.16,23.69]
[1723384007762,16.1648335,151.24,151.17,20.0]
[1723384008452,17.81816264,151.24,151.16,23.69]
[1723384008645,16.1648335,151.24,151.16,23.69]
[1723384008851,16.1648335,151.24,151.17,20.0]
[1723384009362,17.8181077,151.24,151.17,20.0]
[1723384009858,0.12549,151.23,151.17,20.0]
[1723384010251,45.12549,151.23,151.17,20.0]
[1723384011539,45.0,151.23,151.17,20.0]
[1723384011962,16.1648335,151.24,151.17,20.0]
[1723384013742,15.1648335,151.24,151.17,20.0]
[1723384014272,45.25098,151.23,151.17,20.0]
[1723384014643,4.87998,151.22,151.14,23.69]
[1723384014842,45.25098,151.21,151.13,23.69]
[1723384015159,23.69,151.23,151.15,23.69]
[1723384015375,45.12549,151.22,151.16,20.0]
[1723384015661,0.12549,151.21,151.16,20.0]
[1723384016151,45.0,151.22,151.16,20.0]
[1723384017871,45.25098,151.23,151.16,20.0]
[1723384018070,0.12549,151.22,151.16,20.0]
[1723384018440,0.25098,151.22,151.16,20.0]
[1723384019564,0.12549,151.21,151.16,20.0]
[1723384019742,0.25098,151.21,151.13,23.69]
[1723384019949,0.12549,151.19,151.11,23.69]
[1723384020273,0.25098,151.2,151.11,23.69]
[1723384020448,0.25098,151.2,151.13,23.69]
[1723384020652,0.12549,151.23,151.15,23.69]
[1723384020850,0.25098,151.23,151.15,23.69]
[1723384021064,6.90261612,151.27,151.21,23.69]
[1723384021380,23.69,151.33,151.23,23.69]
[1723384021585,23.69,151.33,151.24,20.0]
[1723384021963,28.3157,151.33,151.24,20.0]
[1723384022360,41.19156663,151.35,151.24,20.0]
[1723384022671,1.65276663,151.32,151.24,20.0]
[1723384023177,1.65268205,151.34,151.24,20.0]
[1723384023580,1.65268205,151.34,151.25,23.69]
[1723384023958,39.5388,151.35,151.25,23.69]
[1723384024377,1.65240673,151.34,151.25,23.69]
[1723384024564,38.5388,151.35,151.26,6.0533]
[1723384025490,23.69,151.37,151.27,23.69]
[1723384025680,28.314,151.39,151.28,20.0]
[1723384026386,23.69,151.36,151.28,20.0]
[1723384026563,0.8160335,151.4,151.26,6.0533]
[1723384026564,23.69,151.34,151.26,6.0533]
[1723384026764,23.69,151.34,151.27,20.0]
[1723384026979,0.8160335,151.4,151.28,23.69]
[1723384027189,0.8160335,151.4,151.34,23.69]
[1723384027494,0.8160335,151.4,151.34,30.3265]
[1723384027798,0.8160335,151.4,151.34,6.6365]
[1723384028162,29.1295335,151.4,151.3,23.69]
[1723384028358,23.19,151.38,151.29,6.6365]
[1723384028558,1.65204243,151.37,151.29,6.6365]
[1723384028862,0.12549,151.36,151.29,6.6365]
[1723384029158,0.25098,151.36,151.29,6.6365]
[1723384029363,0.25098,151.35,151.29,6.6365]
[1723384029770,45.0,151.37,151.29,6.6365]
[1723384029968,24.5060335,151.4,151.29,6.6365]
[1723384030170,0.8160335,151.4,151.32,23.69]
[1723384030388,0.8160335,151.4,151.34,23.69]
[1723384032489,0.8160335,151.4,151.32,23.69]
[1723384032697,0.25098,151.39,151.29,6.6365]
[1723384032899,0.12549,151.37,151.29,6.6365]
[1723384033390,45.12549,151.37,151.3,23.69]
[1723384033571,44.25098,151.37,151.3,23.69]
[1723384033982,0.12549,151.36,151.29,6.6365]
[1723384034293,44.25098,151.37,151.29,6.6365]
[1723384035792,45.0,151.36,151.29,6.6365]
[1723384035965,45.37647,151.38,151.29,6.6365]
[1723384036166,0.37647,151.37,151.29,6.6365]
[1723384036388,0.12549,151.36,151.29,6.6365]
[1723384036587,45.0,151.36,151.29,6.6365]
[1723384036808,45.0,151.38,151.3,43.69]
[1723384037098,0.8160335,151.4,151.32,23.69]
[1723384037297,0.8160335,151.4,151.33,20.0]
[1723384037588,0.8160335,151.4,151.36,23.69]
[1723384038492,0.8160335,151.4,151.34,23.69]
[1723384038674,0.8160335,151.4,151.35,20.0]
[1723384040128,0.8160335,151.4,151.32,20.0]
[1723384040277,0.8160335,151.4,151.33,29.36]
[1723384040485,0.8160335,151.4,151.34,20.0]
[1723384041982,0.8160335,151.4,151.36,6.6365]
[1723384042295,0.8160335,151.4,151.37,20.0]
[1723384044080,0.8160335,151.4,151.38,29.48549]
[1723384044383,0.8160335,151.4,151.39,20.37647]
[1723384044597,0.8160335,151.4,151.39,20.50196]
[1723384044900,22.70834718,151.55,151.4,21.9848]
[1723384044901,11.16064718,151.55,151.4,21.9848]
[1723384045074,5.4351335,151.55,151.44,29.36]
[1723384045268,0.8160335,151.55,151.45,20.0]
[1723384045600,5.4349335,151.55,151.45,20.0]
[1723384045996,0.8160335,151.55,151.45,20.0]
[1723384046206,0.8160335,151.55,151.46,29.48549]
[1723384046412,0.8160335,151.55,151.47,20.12549]
[1723384046617,0.8160335,151.55,151.46,29.61098]
[1723384046913,0.8160335,151.55,151.47,20.0]
[1723384047213,0.8160335,151.55,151.48,6.0109]
[1723384047397,0.8160335,151.55,151.49,20.0]
[1723384048691,0.8160335,151.55,151.48,35.3709]
[1723384049011,0.8160335,151.55,151.48,6.0109]
[1723384049192,0.8160335,151.55,151.49,20.0]
[1723384050711,0.8160335,151.55,151.52,29.36]
[1723384051399,0.8160335,151.55,151.53,20.0]
[1723384051595,0.8160335,151.55,151.53,12.35177327]
[1723384052210,0.8160335,151.55,151.52,29.36]
[1723384053213,0.8160335,151.55,151.53,0.12549]
[1723384053397,0.8160335,151.55,151.52,29.36]
[1723384053592,0.8160335,151.55,151.5,45.3343]
[1723384053911,0.8160335,151.55,151.51,20.0]
[1723384054112,0.8160335,151.55,151.48,35.3709]
[1723384054413,0.8160335,151.55,151.49,20.0]
[1723384055195,16.8130335,151.55,151.46,29.36]
[1723384056127,0.8160335,151.55,151.48,29.36]
[1723384056498,0.8160335,151.55,151.46,29.36]
[1723384056692,0.8160335,151.55,151.47,20.0]
[1723384057194,0.8160335,151.55,151.45,20.0]
[1723384057399,0.8160335,151.55,151.46,29.36]
[1723384057611,0.8160335,151.55,151.47,20.0]
[1723384057802,0.8160335,151.55,151.48,29.36]
[1723384057999,0.8160335,151.55,151.49,20.0]
[1723384058589,0.8160335,151.55,151.46,29.36]
[1723384058794,0.8160335,151.55,151.44,29.36]
[1723384059016,0.8160335,151.55,151.45,20.0]
[1723384059503,30.1760335,151.55,151.43,6.0109]
[1723384059705,29.36,151.53,151.43,6.0109]
[1723384060216,15.997,151.51,151.42,29.36]
[1723384060697,15.997,151.51,151.4,29.36]
[1723384061015,49.9771,151.51,151.4,29.36]
[1723384061219,45.0,151.5,151.4,29.36]
[1723384061619,45.0,151.5,151.39,6.0109]
[1723384062828,29.48549,151.49,151.38,45.3343]
[1723384063033,45.0,151.48,151.39,20.0]
[1723384064303,45.0,151.48,151.36,29.36]
[1723384064915,0.25098,151.47,151.36,29.36]
[1723384065300,0.25098,151.46,151.36,29.36]
[1723384065517,0.12549,151.45,151.36,29.36]
[1723384065724,21.7266,151.44,151.33,29.36]
[1723384066705,21.7266,151.44,151.37,29.36]
[1723384066906,15.0941,151.44,151.39,29.36]
[1723384067143,21.7266,151.48,151.39,29.36]
[1723384073034,21.7266,151.48,151.41,29.36]
[1723384073207,15.0941,151.48,151.41,29.36]
[1723384073910,15.0941,151.48,151.38,16.3552]
[1723384073911,15.0941,151.48,151.39,29.36]
[1723384074126,15.0941,151.48,151.4,20.0]
[1723384076523,15.0941,151.48,151.38,20.0]
[1723384078121,29.36,151.47,151.38,20.0]
[1723384078309,29.36,151.45,151.38,20.0]
[1723384078516,29.36,151.45,151.36,20.0]
[1723384078517,6.3595,151.44,151.36,20.0]
[1723384078812,6.3595,151.44,151.35,29.36]
[1723384079036,6.3595,151.44,151.36,20.0]
[1723384082437,44.4541,151.43,151.33,29.36]
[1723384082649,44.4541,151.43,151.31,36.8277752]
[1723384082837,29.36,151.41,151.31,36.8277752]
[1723384083014,29.36,151.41,151.31,29.36]
[1723384083419,29.36,151.41,151.31,28.86]
[1723384083621,45.0,151.4,151.31,28.86]
[1723384083950,29.36,151.41,151.31,28.86]
[1723384084147,45.0,151.4,151.31,28.86]
[1723384084457,15.0941,151.43,151.33,29.36]
[1723384084658,15.0941,151.43,151.34,20.0]
[1723384085838,44.4541,151.43,151.34,20.0]
[1723384086021,45.12549,151.42,151.32,20.0]
[1723384086219,45.0,151.42,151.32,20.0]
[1723384086526,15.0941,151.43,151.33,29.36]
[1723384086855,15.0941,151.43,151.34,20.0]
[1723384087028,15.0941,151.43,151.35,29.36]
[1723384087620,44.4541,151.43,151.34,20.0]
[1723384087827,4.74839,151.42,151.29,7.4677752]
[1723384088121,23.49,151.41,151.32,23.49]
[1723384089927,49.0767,151.43,151.31,29.36]
[1723384090140,45.12549,151.42,151.32,20.0]
[1723384092334,49.74849,151.42,151.32,20.0]
[1723384092633,29.36,151.41,151.32,20.0]
[1723384092862,45.0,151.4,151.32,20.0]
[1723384094055,0.12549,151.42,151.32,20.0]
[1723384094249,0.25098,151.42,151.32,20.0]
[1723384094452,45.25098,151.42,151.32,20.0]
[1723384095443,49.87398,151.42,151.32,20.0]
[1723384095833,45.25098,151.42,151.32,20.0]
[1723384097550,29.36,151.41,151.32,20.0]
[1723384097755,45.0,151.4,151.32,20.0]
[1723384097953,29.36,151.39,151.32,20.0]
[1723384098272,29.36,151.39,151.3,20.0]
[1723384099066,31.01171151,151.39,151.3,20.0]
[1723384099269,29.36,151.39,151.3,20.0]
[1723384102178,45.12549,151.4,151.3,20.0]
[1723384102556,45.0,151.4,151.31,29.36]
[1723384102757,45.0,151.41,151.32,20.0]
[1723384103260,45.37647,151.42,151.32,20.0]
[1723384103572,0.12549,151.41,151.32,20.0]
[1723384104151,6.89778784,151.42,151.32,20.0]
[1723384104357,6.89778784,151.42,151.39,29.36]
[1723384104549,15.553,151.48,151.37,29.36]
[1723384104856,44.913,151.48,151.37,29.36]
[1723384105070,49.534,151.48,151.37,29.36]
[1723384105251,44.913,151.48,151.37,29.36]
[1723384105952,15.553,151.48,151.37,29.36]
[1723384106244,15.553,151.48,151.38,20.0]
[1723384106654,44.913,151.48,151.38,20.0]
[1723384106869,4.6214,151.47,151.38,20.0]
[1723384107060,49.5341,151.48,151.37,29.36]
[1723384107256,45.0,151.47,151.37,29.36]
[1723384107663,15.553,151.48,151.39,29.36]
[1723384107997,15.553,151.48,151.41,29.36]
[1723384108564,15.553,151.48,151.39,29.36]
[1723384109892,15.553,151.48,151.4,23.47]